[Event "23rd Alekhine Master 2019"]
[Site "Voronezh"]
[Date "2019.06.21"]
[Round "9.9"]
[White "Belyakov, Bogdan"]
[Black "Goganov, Aleksey"]
[Result "0-1"]
[ECO "D47"]
[WhiteElo "2483"]
[BlackElo "2559"]
[Annotator "RC"]
[PlyCount "118"]
[EventDate "2019.06.12"]
[EventType "swiss"]
[EventCountry "RUS"]
[SourceTitle "playchess.com"]
[Source "ChessBase"]
[SourceQuality "1"]
[TimeControl "40/5400+30:1800+30"]

1. d4 {[%emt 0:02:24]} d5 {[%emt 0:00:58]} 2. c4 {[%emt 0:00:07]} c6 {[%emt 0:00:08]} 3. Nc3 {[%emt 0:00:06]} Nf6 {[%emt 0:00:03]} 4. e3 {[%emt 0:00:07]} e6 {[%emt 0:00:04]} 5. Nf3 {[%emt 0:00:07]} Nbd7 {[%emt 0:00:03]} 6. Bd3 {[%emt 0:00:07]} dxc4 {[%emt 0:00:04]} 7. Bxc4 {[%emt 0:00:07]} b5 {[%emt 0:00:05]} 8. Bd3 {[%emt 0:00:06]} Bd6 {[%emt 0:00:13]} 9. O-O {[%emt 0:00:07]} O-O {[%emt 0:00:04]} 10. Bd2 {[%emt 0:00:12]} Bb7 {[%emt 0:02:13]} 11. Rc1 {[%emt 0:00:12]} Rc8 {[%emt 0:02:28]} 12. Ne4 {[%emt 0:08:50]} Nxe4 {[%emt 0:00:22]} 13. Bxe4 {[%emt 0:00:05]} Nf6 {[%emt 0:03:43]} 14. Bd3 {[%emt 0:00:31]} c5 {[%emt 0:02:03]} 15. Bxb5 {[%emt 0:03:53]} Bxf3 {[%emt 0:04:16]} 16. Qxf3 {[%emt 0:00:39]} cxd4 {[%emt 0:00:04]} 17. a4 {[%emt 0:07:26]} Rxc1 {[%emt 0:05:57]} 18. Bxc1 {[%emt 0:02:46]} a6 {[%emt 0:06:36]} 19. Bxa6 {[%emt 0:07:48]} Bxh2+ {[%emt 0:00:05]} 20. Kh1 {[%emt 0:00:21]} Bb8 {[%emt 0:07:07]} 21. g3 {[%emt 0:01:57]} e5 {[%emt 0:04:32]} 22. e4 {[%emt 0:04:01]} Bd6 {[%emt 0:01:29]} 23. Bg5 {[%emt 0:19:55]} Qa8 {[%emt 0:01:39]} 24. Bxf6 {[%emt 0:00:16]} Qxa6 {[%emt 0:00:30]} 25. Kg2 {[%emt 0:00:06]} Bb8 {[%emt 0:09:50]} 26. Be7 {[%emt 0:07:26]} Re8 {[%emt 0:00:39]} 27. Bc5 {[%emt 0:00:05]} Qxa4 {[%emt 0:00:29]} 28. b4 {[%emt 0:00:04]} Ba7 {[%emt 0:08:18]} 29. Rc1 {[%emt 0:00:16]} Bxc5 {[%emt 0:00:11]} 30. bxc5 {[%emt 0:00:05]} Qc6 {[%emt 0:00:03]} 31. Qd3 {[%emt 0:00:24]} h5 {[%emt 0:04:26]} 32. f3 {[%emt 0:00:22]} Rb8 {[%emt 0:01:20]} 33. Rc2 {[%emt 0:00:54]} h4 {[%emt 0:10:12]} 34. g4 {[%emt 0:00:04]} Qf6 {[%emt 0:03:33]} 35. c6 {[%emt 0:03:26]} Qf4 {[%emt 0:05:17]} 36. Qf1 {[%emt 0:09:11]} Qg3+ {[%emt 0:00:06]} 37. Kh1 {[%emt 0:00:06]} Rc8 {[%emt 0:02:12]} 38. c7 {[%emt 0:02:28]} h3 {[%emt 0:01:46]} 39. Qf2 {[%emt 0:04:38]} Qxf2 {[%emt 0:00:27]} 40. Rxf2 {[%emt 0:00:00]} Rxc7 {[%emt 0:00:00]} 41. Kh2 {[%emt 0:00:15]} Kh7 {[%emt 0:07:07]} 42. Kxh3 {[%emt 0:00:05]} Kg6 {[%emt 0:00:03]} 43. Kh4 {[%emt 0:04:34]} f6 {[%emt 0:04:39]} 44. g5 {[%emt 0:10:11]} f5 {[%emt 0:00:06]} 45. Ra2 {[%emt 0:00:03]} fxe4 {[%emt 0:00:08]} 46. fxe4 {[%emt 0:00:07]} Rc6 {[%emt 0:00:43]} 47. Kg4 {[%emt 0:00:36]} d3 {[%emt 0:01:11]} 48. Kf3 {[%emt 0:00:10]} Rd6 {[%emt 0:00:05]} 49. Rd2 {[%emt 0:00:16]} Kxg5 {[%emt 0:00:32]} 50. Ke3 {[%emt 0:00:29]} Kg4 {[%emt 0:00:53]} 51. Kf2 {[%emt 0:00:07]} Kf4 {[%emt 0:00:03]} 52. Ke1 {[%emt 0:00:04]} Kxe4 {[%emt 0:00:08]} 53. Rg2 {[%emt 0:00:07]} Ra6 {[%emt 0:00:28]} 54. Rxg7 {[%emt 0:00:22]} Ke3 {[%emt 0:00:06]} 55. Rg3+ {[%emt 0:00:30]} Kd4 {[%emt 0:00:05]} 56. Rg4+ {[%emt 0:01:11]} Kc3 {[%emt 0:00:09]} 57. Rg3 {[%emt 0:00:29]} e4 {[%emt 0:00:08]} 58. Rh3 {[%emt 0:00:32]} Ra1+ {[%emt 0:00:19]} 59. Kf2 {[%emt 0:00:07]} Kd4 {[%emt 0:00:29]} 0-1

[Event "23rd Alekhine Master 2019"]
[Site "Voronezh"]
[Date "2019.06.21"]
[Round "9.11"]
[White "Svetushkin, Dmitry"]
[Black "Rodin, Dmitrij"]
[Result "1-0"]
[ECO "B43"]
[WhiteElo "2532"]
[BlackElo "2403"]
[Annotator "RC"]
[PlyCount "63"]
[EventDate "2019.06.12"]
[EventType "swiss"]
[EventCountry "RUS"]
[SourceTitle "playchess.com"]
[Source "ChessBase"]
[SourceQuality "1"]
[TimeControl "40/5400+30:1800+30"]

1. e4 c5 {[%emt 0:01:58]} 2. Nf3 {[%emt 0:00:55]} e6 {[%emt 0:00:04]} 3. Nc3 {[%emt 0:00:06]} a6 {[%emt 0:01:29]} 4. d4 {[%emt 0:00:30]} cxd4 {[%emt 0:00:30]} 5. Nxd4 {[%emt 0:00:30]} Qc7 {[%emt 0:00:30]} 6. Bd3 {[%emt 0:00:30]} Nf6 {[%emt 0:00:30]} 7. f4 {[%emt 0:00:30]} d6 {[%emt 0:00:30]} 8. Qf3 {[%emt 0:00:30]} Nbd7 {[%emt 0:00:30]} 9. g4 {[%emt 0:00:30]} h6 {[%emt 0:00:30]} 10. Be3 {[%emt 0:00:30]} b5 {[%emt 0:00:30]} 11. h4 {[%emt 0:02:23]} b4 {[%emt 0:20:32]} 12. Nce2 {[%emt 0:00:13]} e5 {[%emt 0:01:08]} 13. Nf5 {[%emt 0:04:14]} g6 {[%emt 0:23:17]} 14. Nfg3 {[%emt 0:01:56]} Nc5 {[%emt 0:15:28]} 15. f5 {[%emt 0:03:46]} gxf5 {[%emt 0:01:43]} 16. Bxc5 {[%emt 0:29:30]} Qxc5 {[%emt 0:04:12]} 17. Nxf5 {[%emt 0:00:46]} Rg8 {[%emt 0:11:19]} 18. Nxh6 {[%emt 0:06:48]} Bxh6 {[%emt 0:00:12]} 19. Qxf6 {[%emt 0:00:04]} Be3 {[%emt 0:00:06]} 20. g5 {[%emt 0:04:14]} Be6 {[%emt 0:00:07]} 21. g6 {[%emt 0:07:07]} Rxg6 {[%emt 0:08:14]} 22. Qh8+ {[%emt 0:01:51]} Ke7 {[%emt 0:00:04]} 23. Qxa8 {[%emt 0:00:07]} Bh6 {[%emt 0:00:34]} 24. Rf1 {[%emt 0:09:20]} a5 {[%emt 0:00:54]} 25. Rd1 {[%emt 0:01:34]} Rg2 {[%emt 0:00:47]} 26. Qh8 {[%emt 0:00:58]} Bf4 {[%emt 0:01:24]} 27. Rxf4 {[%emt 0:09:04]} exf4 {[%emt 0:00:03]} 28. Nd4 {[%emt 0:00:35]} Rh2 {[%emt 0:04:56]} 29. Bb5 {[%emt 0:03:52]} Bg4 {[%emt 0:01:54]} 30. Nc6+ {[%emt 0:01:37]} Ke6 {[%emt 0:00:31]} 31. Nd8+ {[%emt 0:01:05]} Ke7 {[%emt 0:00:18]} 32. Qe8+ {[%emt 0:00:22]} 1-0

[Event "23rd Alekhine Master 2019"]
[Site "Voronezh"]
[Date "2019.06.21"]
[Round "9.12"]
[White "Shariyazdanov, Andrey"]
[Black "Tologontegin, Semetey"]
[Result "0-1"]
[ECO "A40"]
[WhiteElo "2526"]
[BlackElo "2386"]
[Annotator "RC"]
[PlyCount "66"]
[EventDate "2019.06.12"]
[EventType "swiss"]
[EventCountry "RUS"]
[SourceTitle "playchess.com"]
[Source "ChessBase"]
[SourceQuality "1"]
[TimeControl "40/5400+30:1800+30"]

1. d4 {[%emt 0:00:00]} e6 {[%emt 0:00:00]} 2. c4 {[%emt 0:00:11]} b6 {[%emt 0:01:10]} 3. a3 {[%emt 0:00:37]} Bb7 {[%emt 0:00:26]} 4. Nc3 {[%emt 0:00:07]} f5 {[%emt 0:00:19]} 5. d5 {[%emt 0:02:16]} Nf6 {[%emt 0:13:06]} 6. g3 {[%emt 0:00:24]} Be7 {[%emt 0:03:14]} 7. Bg2 {[%emt 0:00:23]} a5 {[%emt 0:01:12]} 8. Nh3 {[%emt 0:07:23]} Na6 {[%emt 0:02:26]} 9. Nf4 {[%emt 0:01:04]} exd5 {[%emt 0:28:17]} 10. Nfxd5 {[%emt 0:07:46]} Nxd5 {[%emt 0:15:09]} 11. Nxd5 {[%emt 0:02:48]} Bc6 {[%emt 0:04:10]} 12. e4 {[%emt 0:01:54]} O-O {[%emt 0:00:43]} 13. O-O {[%emt 0:00:49]} fxe4 {[%emt 0:02:25]} 14. Bxe4 {[%emt 0:00:11]} Nc5 {[%emt 0:00:09]} 15. Bc2 {[%emt 0:00:10]} Bf6 {[%emt 0:04:26]} 16. h4 {[%emt 0:05:07]} d6 {[%emt 0:04:07]} 17. Rb1 {[%emt 0:08:03]} a4 {[%emt 0:00:50]} 18. Re1 {[%emt 0:00:52]} Qd7 {[%emt 0:02:20]} 19. Bf4 {[%emt 0:04:35]} Rf7 {[%emt 0:00:42]} 20. Kh2 {[%emt 0:06:44]} Raf8 {[%emt 0:00:20]} 21. Be3 {[%emt 0:00:31]} Bd8 {[%emt 0:04:04]} 22. f4 {[%emt 0:02:11]} Bf6 {[%emt 0:10:07]} 23. h5 {[%emt 0:04:43]} Bb7 {[%emt 0:01:14]} 24. Bxc5 {[%emt 0:01:06]} bxc5 {[%emt 0:00:02]} 25. Qd3 {[%emt 0:01:03]} g5 {[%emt 0:00:28]} 26. hxg6 {[%emt 0:00:19]} Rg7 {[%emt 0:00:06]} 27. gxh7+ {[%emt 0:01:58]} Kh8 {[%emt 0:00:00]} 28. Qf5 {[%emt 0:04:48]} Qd8 {[%emt 0:00:06]} 29. Nxf6 {[%emt 0:03:32]} Rxf6 {[%emt 0:00:03]} 30. Qh5 {[%emt 0:00:15]} Bc6 {[%emt 0:00:05]} 31. Re3 {[%emt 0:12:58]} Qf8 {[%emt 0:01:32]} 32. Rf1 {[%emt 0:02:14]} Re7 {[%emt 0:01:09]} 33. Rxe7 {[%emt 0:09:43]} Rh6 {[%emt 0:00:05]} 0-1